bitfinex/quotes_BTCUSD_20220306
["timestamp","ask_amount","ask_price","bid_price","bid_amount"]
[1646568383170,3.32656374,38448.0,38447.0,4.73991324]
[1646568383571,3.32656374,38448.0,38447.0,4.34923324]
[1646568383768,4.12546374,38448.0,38447.0,4.34923324]
[1646568383968,3.82656374,38448.0,38447.0,3.95853624]
[1646568384170,3.80963152,38448.0,38447.0,3.89858654]
[1646568384469,3.80963152,38448.0,38447.0,3.88034098]
[1646568384871,3.75032489,38448.0,38447.0,3.88034098]
[1646568385071,3.64438579,38448.0,38447.0,3.88034098]
[1646568385270,3.14438579,38448.0,38447.0,3.88034098]
[1646568385471,3.05394166,38448.0,38447.0,3.88034098]
[1646568386618,2.99784166,38448.0,38447.0,3.88034098]
[1646568386815,2.89758107,38448.0,38447.0,3.88034098]
[1646568387215,0.3026906,38448.0,38447.0,3.88034098]
[1646568387617,2.89758107,38448.0,38447.0,3.88034098]
[1646568387815,2.94768929,38448.0,38447.0,3.88034098]
[1646568388516,2.89758107,38448.0,38447.0,3.88034098]
[1646568388915,2.94768929,38448.0,38447.0,3.88034098]
[1646568389318,2.94768929,38448.0,38446.0,0.0536804]
[1646568389319,1.2,38447.0,38446.0,0.0536804]
[1646568389524,1.0061,38446.0,38431.0,0.6415]
[1646568389717,2.59489047,38433.0,38431.0,0.6415]
[1646568389918,2.59489047,38433.0,38426.0,0.149538]
[1646568390168,2.61989047,38433.0,38425.0,0.149538]
[1646568390369,2.59489047,38433.0,38425.0,0.149538]
[1646568390573,2.59489047,38433.0,38423.0,0.1213]
[1646568390869,2.59489047,38433.0,38418.0,0.6553]
[1646568391068,0.3553534,38432.0,38418.0,0.6553]
[1646568391272,0.3553534,38432.0,38417.0,0.41305]
[1646568391469,0.4204784,38432.0,38417.0,0.41305]
[1646568391768,0.4204784,38432.0,38426.0,0.149538]
[1646568391968,0.065125,38432.0,38426.0,0.149538]
[1646568392169,0.52085684,38432.0,38423.0,9.37e-05]
[1646568392376,2.59489047,38425.0,38423.0,9.37e-05]
[1646568392570,0.11524122,38424.0,38423.0,9.37e-05]
[1646568392770,0.21524122,38424.0,38423.0,9.37e-05]
[1646568393169,0.21524122,38424.0,38417.0,0.149538]
[1646568393369,2.59489047,38423.0,38422.0,9.37e-05]
[1646568393570,2.64499869,38423.0,38422.0,9.37e-05]
[1646568394517,2.64499869,38423.0,38416.0,0.01762707]
[1646568394518,0.130297,38421.0,38416.0,0.01762707]
[1646568394718,0.35573184,38420.0,38416.0,0.01762707]
[1646568394916,0.130297,38421.0,38418.0,0.149538]
[1646568395117,0.13018747,38421.0,38418.0,0.149538]
[1646568395817,0.065148,38422.0,38418.0,0.14963146]
[1646568396818,2.66003847,38422.0,38418.0,0.149538]
[1646568397017,2.66003847,38422.0,38418.0,0.14963146]
[1646568397317,0.065148,38422.0,38418.0,0.14963146]
[1646568397978,0.065148,38422.0,38418.0,0.149538]
[1646568398179,0.065148,38422.0,38418.0,9.346e-05]
[1646568398375,0.05010822,38419.0,38418.0,0.14963146]
[1646568398776,0.05010822,38419.0,38418.0,9.346e-05]
[1646568399175,0.05010822,38419.0,38418.0,0.149538]
[1646568400879,0.42087984,38422.0,38418.0,0.149538]
[1646568401079,0.14109846,38419.0,38418.0,0.149538]
[1646568402126,0.14109846,38419.0,38404.0,0.01523976]
[1646568402127,1.330299,38418.0,38404.0,0.01523976]
[1646568402322,1.330299,38418.0,38400.0,0.4949]
[1646568402323,2.59489047,38410.0,38408.0,0.01523976]
[1646568402522,2.59489047,38410.0,38401.0,0.6023]
[1646568402721,0.1,38417.0,38401.0,0.6023]
[1646568402924,2.59337047,38410.0,38401.0,0.6023]
[1646568403121,0.48606184,38409.0,38401.0,0.6023]
[1646568403321,0.48606184,38409.0,38395.0,0.22490434]
[1646568403322,2.59337047,38402.0,38397.0,0.01523976]
[1646568403522,0.065174,38401.0,38397.0,0.01523976]
[1646568403723,2.59337047,38399.0,38396.0,0.01523976]
[1646568403920,2.59337047,38399.0,38392.0,0.25]
[1646568404320,2.65855747,38399.0,38387.0,0.3464]
[1646568404520,2.65855747,38399.0,38386.0,0.15]
[1646568404722,0.35573184,38398.0,38389.0,0.01523976]
[1646568404921,0.065187,38397.0,38385.0,0.02825976]
[1646568405178,0.065187,38397.0,38389.0,0.01523976]
[1646568405179,0.35573184,38396.0,38389.0,0.01523976]
[1646568405379,0.1,38397.0,38392.0,9.338e-05]
[1646568405580,2.72376347,38394.0,38392.0,9.338e-05]
[1646568405876,0.35573184,38393.0,38392.0,9.338e-05]
[1646568406076,0.46515439,38393.0,38392.0,9.338e-05]
[1646568406477,0.065202,38392.0,38384.0,0.01523976]
[1646568406682,0.46515439,38393.0,38387.0,0.20741105]
[1646568406683,0.35529724,38391.0,38387.0,0.20741105]
[1646568406878,0.130388,38397.0,38387.0,0.20741105]
[1646568406879,0.130361,38399.0,38387.0,0.20741105]
[1646568407276,0.06518,38396.0,38387.0,0.20741105]
[1646568407481,2.65855047,38396.0,38387.0,0.20741105]
[1646568407678,2.59337047,38392.0,38387.0,0.20741105]
[1646568407877,0.130384,38394.0,38390.0,9.291e-05]
[1646568408078,0.04422555,38391.0,38390.0,9.291e-05]
[1646568408277,2.63759602,38391.0,38390.0,9.291e-05]
[1646568408478,0.10941655,38391.0,38390.0,9.291e-05]
[1646568408916,0.10941655,38391.0,38387.0,0.01523976]
[1646568409119,2.59337047,38390.0,38389.0,9.291e-05]
[1646568409320,0.04422555,38390.0,38389.0,9.291e-05]
[1646568409715,2.63759602,38390.0,38389.0,9.291e-05]
[1646568410116,2.63759602,38390.0,38387.0,0.01523976]
[1646568410318,2.59337047,38390.0,38388.0,9.292e-05]
[1646568411318,2.59337047,38390.0,38387.0,0.01523976]
[1646568411519,2.59337047,38390.0,38387.0,9.326e-05]
[1646568412118,0.35529724,38389.0,38387.0,9.326e-05]
[1646568412522,0.0652,38387.0,38380.0,0.6246]
[1646568412773,0.35529724,38386.0,38380.0,0.6246]
[1646568412973,0.35529724,38386.0,38380.0,0.01523976]
[1646568413180,2.94866771,38386.0,38380.0,0.01523976]
[1646568413373,2.94866771,38386.0,38374.0,0.1859]
[1646568413573,0.065202,38383.0,38380.0,0.01523976]
[1646568413773,0.065202,38383.0,38381.0,9.327e-05]
[1646568414176,0.065202,38383.0,38380.0,0.01483303]
[1646568417018,0.065202,38383.0,38380.0,0.01433303]
[1646568417419,0.065197,38386.0,38380.0,0.01433303]
[1646568418318,0.065197,38386.0,38380.0,0.01409119]
[1646568418720,0.065197,38386.0,38381.0,0.00011372]
[1646568419723,0.065197,38386.0,38380.0,0.01409119]
[1646568420020,2.59337047,38389.0,38385.0,0.01409119]
[1646568420021,0.069192,38389.0,38385.0,0.01409119]
[1646568420493,0.004,38389.0,38385.0,0.01409119]
[1646568420693,0.004,38389.0,38384.0,0.21309549]
[1646568421093,0.004,38389.0,38386.0,0.01409119]
[1646568421895,0.004,38389.0,38385.0,0.00011371]
[1646568422093,0.35929724,38389.0,38386.0,0.01409119]
[1646568422297,0.35929724,38389.0,38386.0,0.01420489]
[1646568422494,0.004,38389.0,38386.0,0.0001137]
[1646568422696,0.35929724,38389.0,38386.0,0.01420489]
[1646568422994,0.35929724,38389.0,38386.0,0.0001137]
[1646568423194,0.35929724,38389.0,38381.0,0.19943356]
[1646568423395,0.35529724,38389.0,38386.0,0.01409119]
[1646568423595,0.065194,38388.0,38386.0,0.01409119]
[1646568423796,0.1,38396.0,38386.0,0.01409119]
[1646568424040,0.006,38393.0,38390.0,0.01409119]
[1646568425240,0.1467996,38398.0,38390.0,0.01409119]
[1646568425439,2.59337047,38395.0,38390.0,0.01409119]
[1646568425840,0.1217996,38394.0,38390.0,0.01409119]
[1646568426040,0.1217996,38394.0,38388.0,0.20872694]
[1646568426041,0.11559841,38394.0,38388.0,0.20872694]
[1646568426240,2.59337047,38395.0,38391.0,0.01409119]
[1646568426540,0.065183,38394.0,38391.0,0.01409119]
[1646568427242,0.065183,38394.0,38390.0,0.00011343]
[1646568427544,0.065183,38394.0,38391.0,0.01409119]
[1646568427771,0.065183,38394.0,38393.0,0.01409119]
[1646568427972,0.10940855,38394.0,38393.0,0.01409119]
[1646568428373,0.10940855,38394.0,38390.0,0.00011343]
[1646568428573,0.065183,38394.0,38390.0,0.00011343]
[1646568429373,0.065183,38394.0,38390.0,0.01409119]
[1646568429574,0.065183,38394.0,38390.0,0.01420462]
[1646568430473,0.065183,38394.0,38390.0,0.19744088]
[1646568430673,0.065183,38394.0,38390.0,0.01420462]
[1646568431276,0.065183,38394.0,38390.0,0.00011343]
[1646568431277,2.59337047,38392.0,38390.0,0.00011343]
[1646568431523,0.130398,38391.0,38390.0,0.00011343]
[1646568431726,0.130398,38391.0,38387.0,0.01409119]
[1646568431924,0.130398,38391.0,38389.0,0.00010095]
[1646568432325,2.72376847,38391.0,38389.0,0.00010095]
[1646568432525,0.00593892,38390.0,38389.0,0.00010095]
[1646568432727,2.72376847,38391.0,38389.0,0.00010095]
[1646568432925,2.72376847,38391.0,38380.0,0.6625]
[1646568433123,0.130398,38391.0,38388.0,0.00010096]
[1646568433327,2.59337047,38389.0,38388.0,0.00010096]
[1646568433527,2.59363143,38389.0,38388.0,0.00010096]
[1646568433824,2.69957035,38389.0,38388.0,0.00010096]
[1646568434125,0.065207,38387.0,38380.0,0.6625]
[1646568434523,2.59337047,38382.0,38377.0,0.01409119]
[1646568435581,2.59337047,38382.0,38378.0,9.074e-05]
[1646568435781,2.59147516,38382.0,38378.0,9.074e-05]
[1646568435983,0.130414,38385.0,38378.0,9.074e-05]
[1646568436182,2.59147516,38382.0,38380.0,0.01409119]
[1646568436383,2.59147516,38382.0,38378.0,9.074e-05]
[1646568436582,2.65668216,38382.0,38375.0,0.20528551]
[1646568436783,2.65668216,38382.0,38380.0,9.074e-05]
[1646568437384,2.59147516,38382.0,38380.0,9.074e-05]
[1646568437783,2.59147516,38382.0,38371.0,0.35529724]
[1646568437987,2.59147516,38382.0,38379.0,9.074e-05]
[1646568439035,0.04422555,38380.0,38379.0,9.304e-05]
[1646568439438,0.04422555,38380.0,38379.0,0.01418423]
[1646568440042,0.04422555,38380.0,38379.0,0.01409119]
[1646568440553,3.05620895,38380.0,38378.0,9.305e-05]
[1646568440842,0.49952279,38379.0,38378.0,9.305e-05]
[1646568441240,0.6215825,38379.0,38370.0,0.01409119]
[1646568441440,0.57735695,38379.0,38377.0,9.305e-05]
[1646568441640,2.99099795,38378.0,38377.0,9.305e-05]
[1646568441942,3.11305766,38378.0,38377.0,9.305e-05]
[1646568442541,0.065217,38376.0,38370.0,0.01409119]
[1646568443373,2.59147516,38375.0,38369.0,0.01339113]
[1646568443773,2.59147516,38375.0,38369.0,0.01302]
[1646568443972,0.065217,38376.0,38371.0,9.278e-05]
[1646568444374,2.59147516,38374.0,38371.0,9.278e-05]
[1646568444975,2.59147516,38374.0,38369.0,0.01302]
[1646568444976,0.065232,38372.0,38369.0,0.01302]
[1646568445174,0.065232,38372.0,38371.0,9.278e-05]
[1646568445777,3.0120044,38372.0,38371.0,9.278e-05]
[1646568446074,3.0120044,38372.0,38368.0,0.01409119]
[1646568446272,3.0120044,38372.0,38370.0,9.261e-05]
[1646568446523,2.59147516,38371.0,38370.0,9.261e-05]
[1646568447324,2.59147516,38371.0,38368.0,0.01409119]
[1646568447626,0.35529724,38370.0,38369.0,9.261e-05]
[1646568448624,0.42052924,38372.0,38368.0,0.01409119]
[1646568448824,2.59147516,38370.0,38368.0,0.01418381]
[1646568449024,0.065232,38372.0,38368.0,0.01418381]
[1646568449227,0.191313,38373.0,38368.0,0.01418381]
[1646568449228,0.006,38373.0,38369.0,0.15923]
[1646568449425,2.59147516,38377.0,38369.0,0.15923]
[1646568449625,2.59147516,38377.0,38371.0,0.00146107]
[1646568450025,2.61647516,38377.0,38371.0,0.00146107]
[1646568450483,2.61647516,38377.0,38375.0,0.17244012]
[1646568450985,0.010433,38382.0,38374.0,0.01409119]
[1646568451182,2.59147516,38382.0,38374.0,0.01418383]
[1646568451582,0.12247923,38381.0,38374.0,9.264e-05]
[1646568451784,0.12247923,38381.0,38376.0,0.01409119]
[1646568452183,0.006,38386.0,38380.0,0.01409119]
[1646568452783,2.59747516,38386.0,38377.0,0.01418382]
[1646568452982,2.9467724,38385.0,38378.0,0.01409119]
[1646568453183,0.47777647,38385.0,38380.0,0.01409119]
[1646568453384,0.35529724,38384.0,38380.0,0.01409119]
[1646568453586,0.35529724,38384.0,38380.0,0.01418381]
[1646568454020,0.12247923,38384.0,38380.0,9.262e-05]
[1646568454219,0.47777647,38384.0,38380.0,0.01418381]
[1646568454621,0.12247923,38384.0,38383.0,0.20697774]
[1646568454824,0.12247923,38384.0,38380.0,0.01418381]
[1646568455121,0.010431,38385.0,38380.0,0.01418381]
[1646568455722,0.010431,38385.0,38383.0,0.17643589]
[1646568456424,0.12247923,38388.0,38383.0,0.17643589]
[1646568456425,0.12247923,38388.0,38384.0,0.01409119]
[1646568456823,0.28115942,38391.0,38385.0,0.01409119]
[1646568457024,0.12847923,38391.0,38385.0,0.01409119]
[1646568457424,0.12247923,38391.0,38388.0,0.21418862]
[1646568457878,0.12247923,38391.0,38385.0,0.01409119]
[1646568458475,0.12247923,38391.0,38387.0,9.26e-05]
[1646568458879,0.13290723,38391.0,38387.0,9.26e-05]
[1646568459175,0.12247923,38391.0,38387.0,9.26e-05]
[1646568459376,0.12247923,38391.0,38385.0,0.01409119]
[1646568459577,0.12247923,38391.0,38387.0,9.26e-05]
[1646568460176,0.12847923,38391.0,38388.0,0.01409119]
[1646568460778,0.12847923,38391.0,38390.0,0.01409119]
[1646568460980,0.12847923,38391.0,38390.0,0.60284219]
[1646568461177,0.12247923,38402.0,38391.0,1.2]
[1646568461446,0.63639738,38404.0,38397.0,0.20392207]
[1646568461641,0.28110014,38404.0,38397.0,0.21801326]
[1646568461842,0.28110014,38404.0,38399.0,0.1715506]
[1646568462043,0.00594072,38404.0,38399.0,0.1715506]
[1646568462242,0.12247923,38404.0,38399.0,0.1715506]
[1646568462442,0.12247923,38404.0,38403.0,0.01409119]
[1646568462640,0.12247923,38406.0,38403.0,0.00909119]
[1646568462839,0.010425,38405.0,38403.0,0.00909119]
[1646568463841,0.010425,38405.0,38403.0,0.45909119]
[1646568464240,0.0021,38410.0,38403.0,0.45909119]
[1646568464241,0.006,38408.0,38403.0,0.45909119]
[1646568464440,0.006,38408.0,38407.0,0.00909119]
[1646568464839,0.006,38408.0,38407.0,0.20714501]
[1646568465052,0.006,38408.0,38407.0,0.45714501]
[1646568465483,0.0021,38410.0,38408.0,0.15537272]
[1646568465683,0.0021,38410.0,38407.0,0.45714501]
[1646568465884,0.0021,38410.0,38407.0,0.25]
[1646568466086,0.0021,38410.0,38409.0,0.00909119]
[1646568466283,0.04632555,38410.0,38409.0,0.00909119]
[1646568466887,0.05674855,38410.0,38409.0,0.00909119]
[1646568467186,0.04632555,38410.0,38409.0,0.00909119]
[1646568470622,0.05674855,38410.0,38409.0,0.00909119]
[1646568471019,0.04632555,38410.0,38409.0,0.00909119]
[1646568474476,0.05674855,38410.0,38409.0,0.00909119]
[1646568474871,0.04632555,38410.0,38409.0,0.00909119]
[1646568477924,0.07317435,38413.0,38410.0,0.45]
[1646568478122,0.07317435,38413.0,38409.0,0.00909119]
[1646568478324,0.005,38412.0,38409.0,0.00909119]
[1646568479423,2.59147516,38414.0,38409.0,0.00909119]
[1646568480275,2.59147516,38414.0,38410.0,0.00909119]
[1646568480575,0.14,38411.0,38410.0,0.00909119]
[1646568481273,0.14,38411.0,38407.0,0.00909119]
[1646568481475,2.59147516,38408.0,38400.0,0.1227]
[1646568481676,2.59147516,38405.0,38397.0,0.00909119]
[1646568481974,0.35269274,38404.0,38397.0,0.21064159]
[1646568482179,0.35269274,38404.0,38397.0,0.00909119]
[1646568483176,0.065169,38403.0,38397.0,0.1827332]
[1646568483378,0.065169,38403.0,38397.0,0.00909119]
[1646568483575,0.065169,38403.0,38396.0,0.3868716]
[1646568483576,0.065169,38403.0,38396.0,0.1868716]
[1646568483775,0.065169,38403.0,38397.0,0.00909119]
[1646568484430,0.065169,38403.0,38396.0,0.6368716]
[1646568484431,0.065169,38403.0,38396.0,0.1868716]
[1646568484625,0.35269274,38402.0,38396.0,0.1868716]
[1646568484831,2.9441679,38402.0,38395.0,0.6425]
[1646568485025,0.35269274,38402.0,38392.0,0.13129119]
[1646568485226,2.59147516,38400.0,38392.0,0.00909119]
[1646568485426,0.35269274,38399.0,38392.0,0.00909119]
[1646568485627,2.59147516,38396.0,38390.0,0.25918378]
[1646568485826,2.59147516,38393.0,38390.0,0.00909119]
[1646568486027,2.59147516,38393.0,38390.0,9.259e-05]
[1646568486225,0.130365,38399.0,38390.0,9.259e-05]
[1646568486226,0.010428,38397.0,38390.0,9.259e-05]
[1646568486425,2.59147516,38392.0,38390.0,9.259e-05]
[1646568486924,2.59147516,38392.0,38388.0,0.00909119]
[1646568487226,2.59147516,38390.0,38388.0,0.00909119]
[1646568487428,0.065188,38396.0,38388.0,0.00909119]
[1646568487687,2.59147516,38390.0,38388.0,0.00909119]
[1646568488083,2.59147516,38390.0,38383.0,0.00909119]
[1646568488284,0.35269274,38389.0,38383.0,0.00909119]
[1646568488685,0.065195,38392.0,38383.0,0.00909119]
[1646568488885,2.59147516,38390.0,38386.0,0.00909119]
[1646568489085,2.65666316,38392.0,38389.0,0.19780116]
[1646568489484,0.065188,38392.0,38389.0,0.19780116]
[1646568489686,0.41788074,38392.0,38389.0,0.19780116]
[1646568489884,0.065188,38392.0,38389.0,0.19780116]
[1646568490486,0.010428,38393.0,38389.0,0.19780116]
[1646568490686,0.005,38394.0,38389.0,0.19780116]
[1646568490888,0.005,38394.0,38389.0,0.19791436]
[1646568491531,2.61647516,38399.0,38393.0,0.00909119]
[1646568491731,0.04514,38401.0,38389.0,0.19791436]
[1646568491732,0.04514,38401.0,38395.0,0.00909119]
[1646568492129,0.04514,38401.0,38395.0,0.25909119]
[1646568492330,0.04514,38401.0,38395.0,0.25]
[1646568492733,0.04514,38401.0,38399.0,0.00909119]
[1646568492928,0.11212418,38400.0,38396.0,0.25]
[1646568493130,0.04514,38401.0,38399.0,0.00909119]
[1646568493330,0.11212418,38400.0,38399.0,0.00909119]
[1646568494131,0.11212271,38400.0,38399.0,0.00909119]
[1646568494832,0.11212271,38400.0,38399.0,0.25909119]
[1646568495575,0.11212271,38400.0,38399.0,0.00909119]
[1646568496477,2.59147516,38403.0,38400.0,0.388751]
[1646568496478,0.10829094,38402.0,38400.0,0.388751]
[1646568496676,0.005,38403.0,38401.0,0.52691464]
[1646568496876,0.1423,38420.0,38399.0,0.00909119]
[1646568496877,2.39887998,38421.0,38420.0,0.0053]
[1646568497076,2.51182128,38421.0,38420.0,0.0053]
[1646568497274,2.62012994,38421.0,38420.0,0.0053]
[1646568497474,2.50718864,38421.0,38420.0,0.0053]
[1646568497676,2.62309892,38421.0,38420.0,0.0053]
[1646568497879,3.31999107,38421.0,38420.0,0.0053]
[1646568498077,2.81999107,38421.0,38420.0,0.0053]
[1646568498378,0.26303166,38421.0,38420.0,0.0053]
[1646568498576,0.11260866,38421.0,38420.0,0.0053]
[1646568498775,2.59577516,38421.0,38420.0,0.0053]
[1646568499232,2.70408382,38421.0,38420.0,0.0053]
[1646568500630,2.71712197,38421.0,38420.0,0.0053]
[1646568500831,2.84408382,38421.0,38420.0,0.0053]
[1646568501732,0.22778918,38421.0,38420.0,0.0053]
[1646568502034,0.11948052,38421.0,38420.0,0.0053]
[1646568502234,0.12990252,38421.0,38420.0,0.0053]
[1646568502433,0.11948052,38421.0,38420.0,0.0053]
[1646568502881,2.71095568,38421.0,38420.0,0.0053]
[1646568503082,0.0043,38421.0,38420.0,0.0053]
[1646568503378,0.11260866,38421.0,38420.0,0.0053]
[1646568503578,0.0043,38421.0,38420.0,0.0053]
[1646568503779,0.0041,38421.0,38420.0,0.0053]
[1646568504178,0.01713832,38421.0,38420.0,0.0053]
[1646568504378,2.60861348,38421.0,38420.0,0.0053]
[1646568504778,2.71692214,38421.0,38420.0,0.0053]
[1646568505378,2.72286259,38421.0,38420.0,0.0053]
[1646568505583,2.73328459,38421.0,38420.0,0.0053]
[1646568505780,2.72734414,38421.0,38420.0,0.0053]
[1646568505980,2.72286259,38421.0,38420.0,0.0053]
[1646568506180,2.85636259,38421.0,38412.0,0.00909119]
[1646568506430,0.10830866,38420.0,38412.0,0.00909119]
[1646568506629,0.24745253,38420.0,38413.0,0.16700496]
[1646568507235,0.13914387,38420.0,38413.0,0.16700496]
[1646568507833,0.10830866,38421.0,38413.0,0.16700496]
[1646568508234,0.065141,38419.0,38412.0,0.00909119]
[1646568508432,2.59147516,38417.0,38411.0,0.45]
[1646568508630,2.59147516,38415.0,38412.0,0.00909119]
[1646568508832,2.59147516,38415.0,38409.0,0.00909119]
[1646568509032,0.10830866,38414.0,38409.0,0.00909119]
[1646568509435,0.10830866,38414.0,38404.0,0.82869119]
[1646568509634,2.59147516,38408.0,38403.0,0.1199]
[1646568509833,2.59147516,38406.0,38401.0,0.20909119]
[1646568510283,0.10830866,38405.0,38401.0,0.00909119]
[1646568510983,0.10830866,38405.0,38401.0,0.20887379]
[1646568511182,2.59147516,38404.0,38401.0,0.20887379]
[1646568511385,2.59147516,38404.0,38401.0,0.00909119]
[1646568511582,0.10830866,38403.0,38401.0,0.00909119]
[1646568511883,0.065169,38402.0,38401.0,0.00909119]
[1646568515936,0.065169,38402.0,38400.0,0.00909119]
[1646568516331,0.065169,38402.0,38398.0,0.00909119]
[1646568516932,0.065169,38402.0,38396.0,0.45852832]
[1646568517331,0.065169,38402.0,38399.0,0.20909119]
[1646568518583,0.065169,38402.0,38400.0,0.00909119]
[1646568519177,2.65664416,38402.0,38400.0,0.00909119]
[1646568519780,0.10830866,38401.0,38400.0,0.00909119]
[1646568519980,0.10830866,38401.0,38396.0,0.20852832]
[1646568520379,0.10830866,38401.0,38400.0,0.00909119]
[1646568521633,2.65664416,38402.0,38400.0,0.00909119]
[1646568521832,0.10830866,38401.0,38400.0,0.00909119]
[1646568523737,0.10830866,38401.0,38400.0,0.61440235]
[1646568525498,2.59147516,38402.0,38400.0,0.61440235]
[1646568525893,0.10830866,38401.0,38400.0,0.61440235]
[1646568526494,0.10830866,38401.0,38400.0,0.61431631]
[1646568533289,0.1076673,38403.0,38400.0,0.60931631]
[1646568535888,0.1076673,38403.0,38401.0,0.00909119]
[1646568539427,0.1076673,38403.0,38400.0,0.60931631]
[1646568540027,0.1076673,38403.0,38401.0,0.00909119]
[1646568540682,2.59147516,38402.0,38401.0,0.00909119]
[1646568540880,2.59147516,38402.0,38400.0,0.80931631]
[1646568540881,2.59147516,38402.0,38400.0,0.60931631]
[1646568541480,0.065162,38405.0,38400.0,0.8184075]
[1646568541683,0.35024754,38404.0,38400.0,0.8184075]
[1646568541886,0.35024754,38404.0,38400.0,0.6184075]
[1646568542082,2.59147516,38402.0,38400.0,0.6184075]
[1646568542482,0.35024754,38401.0,38400.0,0.6184075]
[1646568542683,2.59147516,38402.0,38400.0,0.60931631]
[1646568543082,0.13914387,38403.0,38400.0,0.60931631]
[1646568543485,0.35024754,38404.0,38400.0,0.60931631]
[1646568543957,2.59147516,38402.0,38400.0,0.60931631]
[1646568544462,2.59147516,38402.0,38400.0,0.60431631]
[1646568545059,0.35024754,38401.0,38400.0,0.60431631]
[1646568545461,0.48939141,38401.0,38400.0,0.60431631]
[1646568547682,0.13914387,38401.0,38400.0,0.60431631]
[1646568548282,0.48939141,38401.0,38400.0,0.60431631]
[1646568548583,0.24813351,38401.0,38400.0,0.60431631]
[1646568548783,0.10898964,38401.0,38400.0,0.60431631]
[1646568549784,0.10898964,38401.0,38400.0,0.78480407]
[1646568549985,0.065162,38405.0,38401.0,1.2]
[1646568550187,0.13914387,38406.0,38404.0,0.45909119]
[1646568550385,0.10898541,38406.0,38404.0,0.45909119]
[1646568550585,0.007,38407.0,38404.0,0.45909119]
[1646568550784,0.007,38407.0,38406.0,0.00909119]
[1646568550983,0.007,38407.0,38406.0,0.16600017]
[1646568551184,0.007,38407.0,38406.0,0.37285064]
[1646568551634,0.10898541,38410.0,38406.0,0.57285064]
[1646568551834,0.010422,38409.0,38406.0,0.56375945]
[1646568552035,2.59147516,38417.0,38406.0,0.56375945]
[1646568552036,0.10898541,38413.0,38406.0,0.56375945]
[1646568552237,0.10898541,38416.0,38412.0,0.1572447]
[1646568552434,0.007,38414.0,38410.0,0.00909119]
[1646568552835,0.11598541,38414.0,38410.0,0.00909119]
[1646568553535,0.007,38414.0,38410.0,0.00909119]
[1646568553738,0.130291,38417.0,38410.0,0.00909119]
[1646568553935,2.59147516,38413.0,38410.0,0.00909119]
[1646568554135,2.59147516,38414.0,38410.0,0.00909119]
[1646568554435,0.10898541,38413.0,38410.0,0.00909119]
[1646568555283,0.065145,38414.0,38410.0,0.00909119]
[1646568555578,2.59147516,38412.0,38410.0,0.00909119]
[1646568555779,2.59147516,38412.0,38409.0,0.00909119]
[1646568555979,0.10898541,38411.0,38409.0,0.00909119]
[1646568556580,0.10898541,38411.0,38405.0,0.00909119]
[1646568556781,0.45857327,38411.0,38405.0,0.00909119]
[1646568556981,0.45857327,38411.0,38404.0,0.1971]
[1646568556982,0.10898541,38411.0,38404.0,0.1971]
[1646568557182,0.10898541,38411.0,38408.0,0.00909119]
[1646568558185,0.10898541,38411.0,38403.0,0.122]
[1646568558386,3.05004843,38411.0,38403.0,0.58109119]
[1646568558585,0.45857327,38411.0,38403.0,0.38109119]
[1646568558786,0.24812928,38410.0,38403.0,0.38109119]
[1646568559033,0.065161,38406.0,38403.0,0.25909119]
[1646568559433,0.17414641,38406.0,38403.0,0.25909119]
[1646568560533,0.52373427,38406.0,38403.0,0.25909119]
[1646568560736,0.00882387,38413.0,38405.0,1.4]
[1646568560939,0.0032,38422.0,38412.0,0.00909119]
[1646568561135,0.0032,38422.0,38412.0,0.34958786]
[1646568561334,0.0032,38422.0,38420.0,0.00909119]
[1646568561733,0.1388,38421.0,38420.0,0.00909119]
[1646568561933,0.0032,38422.0,38419.0,0.00909119]
[1646568562132,0.0032,38422.0,38412.0,0.34958786]
[1646568562333,0.0032,38422.0,38412.0,0.2]
[1646568562540,0.0032,38422.0,38412.0,0.20909119]
[1646568562786,0.065144,38421.0,38413.0,0.16160905]
[1646568563186,0.065144,38421.0,38413.0,0.36160905]
[1646568563387,0.065144,38421.0,38415.0,0.00909119]
[1646568563585,0.060144,38421.0,38415.0,0.00909119]
[1646568564386,0.0032,38422.0,38413.0,0.16160905]
[1646568564585,0.065143,38419.0,38413.0,0.16160905]
[1646568564786,0.065143,38419.0,38412.0,0.00909119]
[1646568565589,0.02029311,38419.0,38410.0,0.90428832]
[1646568565788,0.02029311,38419.0,38410.0,1.07713659]
[1646568565987,0.02621277,38419.0,38410.0,1.07713659]
[1646568566437,0.065148,38418.0,38410.0,0.1131]
[1646568566637,0.065148,38418.0,38405.0,0.1245]
[1646568566638,0.065161,38415.0,38405.0,0.1245]
[1646568566840,0.065161,38415.0,38403.0,0.35661389]
[1646568567336,0.18021921,38413.0,38404.0,0.18616872]
[1646568567538,0.18021921,38413.0,38403.0,0.35661389]
[1646568567741,0.065159,38410.0,38403.0,0.00909119]
[1646568568536,0.065159,38410.0,38401.0,0.3074]
[1646568568837,0.055159,38410.0,38401.0,0.3074]
[1646568569037,0.055159,38410.0,38401.0,0.1238]
[1646568570038,0.055159,38410.0,38401.0,0.28239177]
[1646568570290,0.055159,38410.0,38401.0,0.1238]
[1646568571087,0.055159,38410.0,38401.0,0.13289119]
[1646568571288,0.055159,38410.0,38403.0,0.00909119]
[1646568571888,0.055159,38410.0,38405.0,0.1622466]
[1646568572088,0.055159,38410.0,38403.0,0.00909119]
[1646568573290,0.055159,38410.0,38401.0,0.4713227]
[1646568573489,0.055159,38410.0,38405.0,0.00909119]
[1646568575141,0.055159,38410.0,38404.0,0.00909119]
[1646568575341,0.055159,38410.0,38401.0,0.1238]
[1646568575544,0.055159,38410.0,38401.0,0.13289119]
[1646568576842,0.055159,38410.0,38401.0,0.1238]
[1646568577045,0.15196725,38402.0,38400.0,0.60431631]
[1646568577247,0.3475227,38401.0,38400.0,0.60431631]
[1646568577442,0.07307,38402.0,38400.0,0.60431631]
[1646568577443,0.20342,38402.0,38400.0,0.60431631]
[1646568577691,0.20342,38402.0,38400.0,0.47611206]
[1646568578293,0.065175,38401.0,38400.0,0.47611206]
[1646568579093,0.07821927,38401.0,38400.0,0.47611206]
[1646568579495,0.42528755,38401.0,38400.0,0.47611206]
[1646568580494,0.41224328,38401.0,38400.0,0.47611206]
[1646568580895,0.55104328,38401.0,38400.0,0.47611206]
[1646568581096,0.61684846,38401.0,38400.0,0.47611206]
[1646568581296,0.75564846,38401.0,38400.0,0.47611206]
[1646568581531,0.55104328,38401.0,38400.0,0.47611206]
[1646568581730,0.6614796,38401.0,38400.0,0.47611206]
[1646568581932,0.55104328,38401.0,38400.0,0.47611206]
[1646568582133,0.42528755,38401.0,38400.0,0.47611206]
[1646568582333,0.52528755,38401.0,38400.0,0.47611206]
[1646568583338,0.51224328,38401.0,38400.0,0.47611206]
[1646568585188,0.65104328,38401.0,38400.0,0.08497106]
[1646568585385,0.52528755,38401.0,38400.0,0.08497106]